[Event "Titled Tuesday Blitz May 10 Early 2022"]
[White "Martin Carmona, Gaston Manuel"]
[Black "Vignesh, N R"]
[WhiteFideId "22284567"]
[BlackFideId "25012215"]
[WhiteElo "2162"]
[BlackElo "2363"]
[Result "0-1"]
[Round "04"]
[TimeControl "180+1"]
[Date "2022.05.11"]
[WhiteClock "0:00:19"]
[BlackClock "0:01:32"]

1. e4 {[%clk 0:02:54]}  e6 {[%clk 0:02:59]} 2. d4 {[%clk 0:02:49]}  d5 {[%clk 0:02:59]} 3. Nd2 {[%clk 0:02:48]}  c5 {[%clk 0:02:57]} 4. exd5 {[%clk 0:02:47]}  Qxd5 {[%clk 0:02:55]} 5. Ngf3 {[%clk 0:02:47]}  cxd4 {[%clk 0:02:55]} 6. Bc4 {[%clk 0:02:48]}  Qd7 {[%clk 0:02:54]} 7. O-O {[%clk 0:02:48]}  a6 {[%clk 0:02:52]} 8. Nb3 {[%clk 0:02:47]}  Nc6 {[%clk 0:02:46]} 9. Nbxd4 {[%clk 0:02:46]}  Nxd4 {[%clk 0:02:46]} 10. Nxd4 {[%clk 0:02:47]}  Qc7 {[%clk 0:02:45]} 11. Bb3 {[%clk 0:02:44]}  Bd7 {[%clk 0:02:45]} 12. c3 {[%clk 0:02:43]}  Bd6 {[%clk 0:02:44]} 13. Qh5 {[%clk 0:02:34]}  Nf6 {[%clk 0:02:42]} 14. Qh4 {[%clk 0:02:34]}  O-O-O {[%clk 0:02:41]} 15. Be3 {[%clk 0:02:28]}  h6 {[%clk 0:02:40]} 16. Nf3 {[%clk 0:02:19]}  Bb5 {[%clk 0:02:27]} 17. Nd4 {[%clk 0:00:58]}  Bxf1 {[%clk 0:02:19]} 18. Rxf1 {[%clk 0:00:59]}  g5 {[%clk 0:02:16]} 19. Qh3 {[%clk 0:00:59]}  Kb8 {[%clk 0:02:15]} 20. Qf3 {[%clk 0:00:55]}  Bxh2+ {[%clk 0:02:11]} 21. Kh1 {[%clk 0:00:55]}  Be5 {[%clk 0:02:10]} 22. Re1 {[%clk 0:00:44]}  Nd5 {[%clk 0:02:09]} 23. Bd2 {[%clk 0:00:42]}  Bf4 {[%clk 0:02:01]} 24. Bxf4 {[%clk 0:00:36]}  Qxf4 {[%clk 0:01:59]} 25. Bxd5 {[%clk 0:00:36]}  Rxd5 {[%clk 0:01:58]} 26. Qxf4+ {[%clk 0:00:33]}  gxf4 {[%clk 0:01:57]} 27. f3 {[%clk 0:00:33]}  Rg8 {[%clk 0:01:51]} 28. Re4 {[%clk 0:00:33]}  e5 {[%clk 0:01:49]} 29. Nb3 {[%clk 0:00:31]}  f5 {[%clk 0:01:48]} 30. Re2 {[%clk 0:00:31]}  Re8 {[%clk 0:01:46]} 31. Kh2 {[%clk 0:00:29]}  e4 {[%clk 0:01:46]} 32. Nd4 {[%clk 0:00:30]}  Kc7 {[%clk 0:01:43]} 33. Kh3 {[%clk 0:00:30]}  Kd6 {[%clk 0:01:43]} 34. Kh4 {[%clk 0:00:26]}  Rxd4 {[%clk 0:01:42]} 35. cxd4 {[%clk 0:00:26]}  Kd5 {[%clk 0:01:43]} 36. fxe4+ {[%clk 0:00:24]}  Rxe4 {[%clk 0:01:40]} 37. Rc2 {[%clk 0:00:23]}  f3+ {[%clk 0:01:37]} 38. Kg3 {[%clk 0:00:23]}  fxg2 {[%clk 0:01:37]} 39. Kxg2 {[%clk 0:00:24]}  Rxd4 {[%clk 0:01:37]} 40. Rc7 {[%clk 0:00:24]}  Rd2+ {[%clk 0:01:36]} 41. Kg3 {[%clk 0:00:23]}  Rxb2 {[%clk 0:01:37]} 42. Rh7 {[%clk 0:00:23]}  b5 {[%clk 0:01:35]} 43. Rxh6 {[%clk 0:00:23]}  Rxa2 {[%clk 0:01:35]} 44. Kf4 {[%clk 0:00:23]}  b4 {[%clk 0:01:35]} 45. Kxf5 {[%clk 0:00:23]}  b3 {[%clk 0:01:33]} 46. Rb6 {[%clk 0:00:23]}  b2 {[%clk 0:01:32]} 47. Kf4 {[%clk 0:00:23]}  Kd4 {[%clk 0:01:32]} 48. Kf3 {[%clk 0:00:22]}  Kc3 {[%clk 0:01:33]} 49. Ke2 {[%clk 0:00:21]}  Kc2 {[%clk 0:01:32]} 50. Rc6+ {[%clk 0:00:21]}  Kb1 {[%clk 0:01:32]} 51. Kd2 {[%clk 0:00:19]}  Ka1 {[%clk 0:01:32]} 0-1


[Site "https://www.chess.com"]

[Event "Titled Tuesday Blitz May 10 Early 2022"]
[White "Martinez Alcantara, Jose Eduardo"]
[Black "Hnydiuk, Aleksander"]
[WhiteFideId "3805662"]
[BlackFideId "1109057"]
[WhiteElo "2690"]
[BlackElo "2374"]
[Result "1/2-1/2"]
[Round "04"]
[TimeControl "180+1"]
[Date "2022.05.10"]
[WhiteClock "0:00:52"]
[BlackClock "0:00:16"]

1. e4 {[%clk 0:03:00]}  e5 {[%clk 0:02:59]} 2. Nf3 {[%clk 0:03:01]}  Nf6 {[%clk 0:02:59]} 3. Nxe5 {[%clk 0:03:01]}  d6 {[%clk 0:02:59]} 4. Nf3 {[%clk 0:03:01]}  Nxe4 {[%clk 0:03:00]} 5. d3 {[%clk 0:03:02]}  Nf6 {[%clk 0:03:00]} 6. d4 {[%clk 0:03:03]}  Be7 {[%clk 0:03:00]} 7. Bd3 {[%clk 0:03:04]}  O-O {[%clk 0:03:00]} 8. O-O {[%clk 0:03:05]}  Bg4 {[%clk 0:02:57]} 9. h3 {[%clk 0:03:04]}  Bh5 {[%clk 0:02:57]} 10. Re1 {[%clk 0:03:04]}  c5 {[%clk 0:02:51]} 11. c3 {[%clk 0:02:59]}  Nc6 {[%clk 0:02:50]} 12. Be3 {[%clk 0:02:58]}  Nd5 {[%clk 0:02:25]} 13. Nbd2 {[%clk 0:02:57]}  cxd4 {[%clk 0:02:16]} 14. cxd4 {[%clk 0:02:57]}  Nxe3 {[%clk 0:02:14]} 15. fxe3 {[%clk 0:02:57]}  Re8 {[%clk 0:02:05]} 16. Qb3 {[%clk 0:02:56]}  Qd7 {[%clk 0:01:14]} 17. d5 {[%clk 0:02:27]}  Na5 {[%clk 0:01:07]} 18. Qb4 {[%clk 0:02:25]}  Qd8 {[%clk 0:01:01]} 19. Rac1 {[%clk 0:02:16]}  Bf6 {[%clk 0:00:58]} 20. Ne4 {[%clk 0:02:08]}  Bxf3 {[%clk 0:00:50]} 21. gxf3 {[%clk 0:02:09]}  Bh4 {[%clk 0:00:44]} 22. Re2 {[%clk 0:02:03]}  f5 {[%clk 0:00:40]} 23. Nxd6 {[%clk 0:01:37]}  Be7 {[%clk 0:00:38]} 24. Nxb7 {[%clk 0:01:19]}  Bxb4 {[%clk 0:00:38]} 25. Nxd8 {[%clk 0:01:20]}  Raxd8 {[%clk 0:00:38]} 26. a3 {[%clk 0:01:15]}  Bf8 {[%clk 0:00:36]} 27. b4 {[%clk 0:01:14]}  Nb7 {[%clk 0:00:33]} 28. Bxf5 {[%clk 0:01:06]}  Rxd5 {[%clk 0:00:29]} 29. Be4 {[%clk 0:01:06]}  Rg5+ {[%clk 0:00:25]} 30. Rg2 {[%clk 0:01:07]}  Rxg2+ {[%clk 0:00:24]} 31. Kxg2 {[%clk 0:01:08]}  Nd6 {[%clk 0:00:20]} 32. Bd5+ {[%clk 0:01:09]}  Kh8 {[%clk 0:00:21]} 33. e4 {[%clk 0:01:09]}  g6 {[%clk 0:00:18]} 34. a4 {[%clk 0:01:05]}  Rc8 {[%clk 0:00:18]} 35. Rd1 {[%clk 0:01:06]}  Kg7 {[%clk 0:00:17]} 36. Kg3 {[%clk 0:01:03]}  Rc3 {[%clk 0:00:16]} 37. b5 {[%clk 0:00:59]}  Kf6 {[%clk 0:00:15]} 38. Bc6 {[%clk 0:00:57]}  Nc4 {[%clk 0:00:14]} 39. Rd8 {[%clk 0:00:32]}  Bd6+ {[%clk 0:00:13]} 40. Kf2 {[%clk 0:00:33]}  Rc2+ {[%clk 0:00:12]} 41. Kf1 {[%clk 0:00:24]}  Ne3+ {[%clk 0:00:12]} 42. Kg1 {[%clk 0:00:25]}  Bc5 {[%clk 0:00:08]} 43. f4 {[%clk 0:00:21]}  Nd5+ {[%clk 0:00:06]} 44. Kh1 {[%clk 0:00:20]}  Nxf4 {[%clk 0:00:06]} 45. e5+ {[%clk 0:00:20]}  Kxe5 {[%clk 0:00:06]} 46. Re8+ {[%clk 0:00:20]}  Kd4 {[%clk 0:00:05]} 47. Re4+ {[%clk 0:00:20]}  Kd3 {[%clk 0:00:03]} 48. Rxf4 {[%clk 0:00:21]}  Rc1+ {[%clk 0:00:03]} 49. Kg2 {[%clk 0:00:21]}  Rc2+ {[%clk 0:00:03]} 50. Kh1 {[%clk 0:00:19]}  Rc1+ {[%clk 0:00:03]} 51. Kg2 {[%clk 0:00:20]}  Rc2+ {[%clk 0:00:04]} 52. Kf3 {[%clk 0:00:20]}  Rf2+ {[%clk 0:00:03]} 53. Kg4 {[%clk 0:00:21]}  Rxf4+ {[%clk 0:00:03]} 54. Kxf4 {[%clk 0:00:22]}  Bb6 {[%clk 0:00:03]} 55. Kg5 {[%clk 0:00:22]}  Kc4 {[%clk 0:00:03]} 56. Kh6 {[%clk 0:00:22]}  Kb4 {[%clk 0:00:03]} 57. a5 {[%clk 0:00:22]}  Kxa5 {[%clk 0:00:03]} 58. Kxh7 {[%clk 0:00:23]}  g5 {[%clk 0:00:03]} 59. Kg6 {[%clk 0:00:24]}  Be3 {[%clk 0:00:03]} 60. Kf5 {[%clk 0:00:24]}  Kb6 {[%clk 0:00:04]} 61. Ke4 {[%clk 0:00:25]}  Bd2 {[%clk 0:00:04]} 62. Kf5 {[%clk 0:00:26]}  Bc1 {[%clk 0:00:04]} 63. Ke4 {[%clk 0:00:27]}  Bd2 {[%clk 0:00:05]} 64. Bd7 {[%clk 0:00:27]}  Bc1 {[%clk 0:00:05]} 65. Be8 {[%clk 0:00:27]}  Bd2 {[%clk 0:00:05]} 66. Kd3 {[%clk 0:00:28]}  Bc1 {[%clk 0:00:05]} 67. Kc2 {[%clk 0:00:29]}  Bf4 {[%clk 0:00:06]} 68. Kd3 {[%clk 0:00:30]}  Be5 {[%clk 0:00:06]} 69. Ke4 {[%clk 0:00:31]}  Bf6 {[%clk 0:00:06]} 70. Kf5 {[%clk 0:00:32]}  Bd8 {[%clk 0:00:07]} 71. Ke6 {[%clk 0:00:32]}  Kc7 {[%clk 0:00:07]} 72. Bg6 {[%clk 0:00:31]}  Kb6 {[%clk 0:00:07]} 73. Bd3 {[%clk 0:00:32]}  Bc7 {[%clk 0:00:07]} 74. Kf5 {[%clk 0:00:33]}  Bd8 {[%clk 0:00:08]} 75. Bf1 {[%clk 0:00:33]}  Be7 {[%clk 0:00:08]} 76. Ke5 {[%clk 0:00:34]}  Bd8 {[%clk 0:00:08]} 77. Ke6 {[%clk 0:00:35]}  Bc7 {[%clk 0:00:08]} 78. Kf6 {[%clk 0:00:35]}  Bd8+ {[%clk 0:00:08]} 79. Ke6 {[%clk 0:00:36]}  Kc7 {[%clk 0:00:08]} 80. Bg2 {[%clk 0:00:34]}  Kb6 {[%clk 0:00:09]} 81. Bc6 {[%clk 0:00:34]}  Bc7 {[%clk 0:00:09]} 82. Be8 {[%clk 0:00:34]}  Bd8 {[%clk 0:00:09]} 83. Kd6 {[%clk 0:00:35]}  Bc7+ {[%clk 0:00:09]} 84. Kd5 {[%clk 0:00:36]}  Bd8 {[%clk 0:00:09]} 85. Ke4 {[%clk 0:00:35]}  Bc7 {[%clk 0:00:10]} 86. Kf5 {[%clk 0:00:36]}  Bd8 {[%clk 0:00:10]} 87. Kg4 {[%clk 0:00:37]}  Be7 {[%clk 0:00:10]} 88. Bg6 {[%clk 0:00:37]}  Bd8 {[%clk 0:00:11]} 89. Bd3 {[%clk 0:00:38]}  Be7 {[%clk 0:00:11]} 90. Be2 {[%clk 0:00:39]}  Bd8 {[%clk 0:00:11]} 91. h4 {[%clk 0:00:39]}  gxh4 {[%clk 0:00:11]} 92. Kh3 {[%clk 0:00:40]}  Be7 {[%clk 0:00:11]} 93. Bf1 {[%clk 0:00:40]}  Kc5 {[%clk 0:00:11]} 94. Be2 {[%clk 0:00:40]}  Kd4 {[%clk 0:00:11]} 95. Bf1 {[%clk 0:00:41]}  Ke3 {[%clk 0:00:11]} 96. Bc4 {[%clk 0:00:40]}  Kf4 {[%clk 0:00:11]} 97. Bf1 {[%clk 0:00:40]}  Kg5 {[%clk 0:00:11]} 98. b6 {[%clk 0:00:41]}  axb6 {[%clk 0:00:10]} 99. Ba6 {[%clk 0:00:42]}  Kf4 {[%clk 0:00:10]} 100. Bf1 {[%clk 0:00:42]}  Ke3 {[%clk 0:00:10]} 101. Ba6 {[%clk 0:00:43]}  Kd4 {[%clk 0:00:10]} 102. Bb5 {[%clk 0:00:44]}  Kc5 {[%clk 0:00:10]} 103. Ba6 {[%clk 0:00:45]}  b5 {[%clk 0:00:10]} 104. Bxb5 {[%clk 0:00:45]}  Kxb5 {[%clk 0:00:11]} 105. Kg2 {[%clk 0:00:46]}  Kc5 {[%clk 0:00:11]} 106. Kh1 {[%clk 0:00:47]}  Kd5 {[%clk 0:00:11]} 107. Kg1 {[%clk 0:00:47]}  Ke4 {[%clk 0:00:12]} 108. Kh1 {[%clk 0:00:48]}  Kf4 {[%clk 0:00:13]} 109. Kg1 {[%clk 0:00:49]}  Kg3 {[%clk 0:00:14]} 110. Kh1 {[%clk 0:00:50]}  h3 {[%clk 0:00:14]} 111. Kg1 {[%clk 0:00:51]}  h2+ {[%clk 0:00:15]} 112. Kh1 {[%clk 0:00:52]}  Kh3 {[%clk 0:00:16]} 1/2-1/2


[Site "https://www.chess.com"]

[Event "Titled Tuesday Blitz May 10 Early 2022"]
[White "Mica, Marek"]
[Black "Sadykov, Ramil"]
[WhiteFideId "382884"]
[BlackFideId "24113590"]
[WhiteElo "2100"]
[BlackElo "2280"]
[Result "0-1"]
[Round "04"]
[TimeControl "180+1"]
[Date "2022.05.11"]
[WhiteClock "0:00:09"]
[BlackClock "0:00:20"]

1. Nf3 {[%clk 0:03:00]}  Nf6 {[%clk 0:02:59]} 2. g3 {[%clk 0:03:00]}  d5 {[%clk 0:02:57]} 3. Bg2 {[%clk 0:03:01]}  Bg4 {[%clk 0:02:51]} 4. O-O {[%clk 0:03:00]}  Bxf3 {[%clk 0:02:48]} 5. Bxf3 {[%clk 0:02:59]}  e5 {[%clk 0:02:49]} 6. d3 {[%clk 0:02:58]}  Be7 {[%clk 0:02:41]} 7. Nd2 {[%clk 0:02:57]}  O-O {[%clk 0:02:39]} 8. c4 {[%clk 0:02:57]}  c6 {[%clk 0:02:39]} 9. Rb1 {[%clk 0:02:54]}  a5 {[%clk 0:02:23]} 10. a3 {[%clk 0:02:48]}  Re8 {[%clk 0:02:19]} 11. Bg2 {[%clk 0:02:44]}  Na6 {[%clk 0:02:12]} 12. e4 {[%clk 0:02:34]}  Nc5 {[%clk 0:02:03]} 13. Qe2 {[%clk 0:02:32]}  dxc4 {[%clk 0:01:57]} 14. Nxc4 {[%clk 0:02:28]}  Qxd3 {[%clk 0:01:54]} 15. Qxd3 {[%clk 0:02:26]}  Nxd3 {[%clk 0:01:55]} 16. Rd1 {[%clk 0:02:12]}  Red8 {[%clk 0:01:41]} 17. Be3 {[%clk 0:02:04]}  Nc5 {[%clk 0:01:25]} 18. Nxe5 {[%clk 0:01:47]}  Ncxe4 {[%clk 0:01:21]} 19. Bb6 {[%clk 0:01:37]}  Rd5 {[%clk 0:01:18]} 20. Nc4 {[%clk 0:01:33]}  a4 {[%clk 0:01:15]} 21. Ne3 {[%clk 0:01:23]}  Rxd1+ {[%clk 0:01:07]} 22. Rxd1 {[%clk 0:01:23]}  Bc5 {[%clk 0:01:07]} 23. Bxc5 {[%clk 0:01:17]}  Nxc5 {[%clk 0:01:07]} 24. Nc4 {[%clk 0:01:17]}  g6 {[%clk 0:01:04]} 25. Rc1 {[%clk 0:01:13]}  Nb3 {[%clk 0:00:58]} 26. Rd1 {[%clk 0:01:10]}  Kf8 {[%clk 0:00:56]} 27. Nb6 {[%clk 0:01:05]}  Ra6 {[%clk 0:00:55]} 28. Nd7+ {[%clk 0:01:05]}  Nxd7 {[%clk 0:00:55]} 29. Rxd7 {[%clk 0:01:06]}  Rb6 {[%clk 0:00:50]} 30. Bf3 {[%clk 0:00:57]}  Nc5 {[%clk 0:00:47]} 31. Rd2 {[%clk 0:00:56]}  h5 {[%clk 0:00:47]} 32. Kg2 {[%clk 0:00:55]}  Ke7 {[%clk 0:00:45]} 33. h3 {[%clk 0:00:56]}  Ne6 {[%clk 0:00:41]} 34. Be4 {[%clk 0:00:51]}  Rb5 {[%clk 0:00:38]} 35. Bf3 {[%clk 0:00:39]}  Rc5 {[%clk 0:00:33]} 36. Bd1 {[%clk 0:00:37]}  b5 {[%clk 0:00:33]} 37. Bf3 {[%clk 0:00:37]}  Rc4 {[%clk 0:00:32]} 38. h4 {[%clk 0:00:34]}  Nd4 {[%clk 0:00:32]} 39. Bd1 {[%clk 0:00:31]}  Kf6 {[%clk 0:00:29]} 40. Rd3 {[%clk 0:00:27]}  c5 {[%clk 0:00:28]} 41. Rd2 {[%clk 0:00:27]}  Rc1 {[%clk 0:00:27]} 42. Bf3 {[%clk 0:00:25]}  Rg1+ {[%clk 0:00:25]} 43. Kh3 {[%clk 0:00:20]}  Nxf3 {[%clk 0:00:25]} 44. Rd6+ {[%clk 0:00:20]}  Ke5 {[%clk 0:00:23]} 45. Rb6 {[%clk 0:00:18]}  Nd4 {[%clk 0:00:22]} 46. Rb7 {[%clk 0:00:17]}  f5 {[%clk 0:00:21]} 47. Re7+ {[%clk 0:00:17]}  Kf6 {[%clk 0:00:20]} 48. Rc7 {[%clk 0:00:17]}  Rc1 {[%clk 0:00:21]} 49. f4 {[%clk 0:00:15]}  Rc2 {[%clk 0:00:20]} 50. Rb7 {[%clk 0:00:14]}  Nf3 {[%clk 0:00:21]} 51. Rb6+ {[%clk 0:00:14]}  Kf7 {[%clk 0:00:21]} 52. g4 {[%clk 0:00:14]}  fxg4+ {[%clk 0:00:20]} 53. Kg3 {[%clk 0:00:14]}  Nd4 {[%clk 0:00:21]} 54. f5 {[%clk 0:00:14]}  Nxf5+ {[%clk 0:00:19]} 55. Kf4 {[%clk 0:00:15]}  g3 {[%clk 0:00:19]} 56. Kg5 {[%clk 0:00:14]}  g2 {[%clk 0:00:19]} 57. Rb7+ {[%clk 0:00:14]}  Ke6 {[%clk 0:00:19]} 58. Rb6+ {[%clk 0:00:14]}  Nd6 {[%clk 0:00:20]} 59. Kh6 {[%clk 0:00:14]}  g1=Q {[%clk 0:00:20]} 60. b4 {[%clk 0:00:14]}  cxb4 {[%clk 0:00:20]} 61. Rb8 {[%clk 0:00:13]}  Qe3+ {[%clk 0:00:20]} 62. Kh7 {[%clk 0:00:12]}  bxa3 {[%clk 0:00:21]} 63. Ra8 {[%clk 0:00:10]}  a2 {[%clk 0:00:21]} 64. Rg8 {[%clk 0:00:09]}  a1=Q {[%clk 0:00:21]} 65. Rxg6+ {[%clk 0:00:09]}  Kd5 {[%clk 0:00:20]} 0-1


[Site "https://www.chess.com"]

[Event "Titled Tuesday Blitz May 10 Early 2022"]
[White "Mortazavi, Ali"]
[Black "Melikyan, Gnel"]
[WhiteFideId "401323"]
[BlackFideId "54109990"]
[WhiteElo "2339"]
[BlackElo "1772"]
[Result "0-1"]
[Round "04"]
[TimeControl "180+1"]
[Date "2022.05.11"]
[WhiteClock "0:00:07"]
[BlackClock "0:00:09"]

1. Nf3 {[%clk 0:02:58]}  Nf6 {[%clk 0:02:59]} 2. g3 {[%clk 0:02:58]}  b6 {[%clk 0:02:59]} 3. Bg2 {[%clk 0:02:58]}  Bb7 {[%clk 0:02:51]} 4. O-O {[%clk 0:02:59]}  g6 {[%clk 0:02:51]} 5. d3 {[%clk 0:02:58]}  Bg7 {[%clk 0:02:52]} 6. e4 {[%clk 0:02:59]}  O-O {[%clk 0:02:52]} 7. a4 {[%clk 0:03:00]}  a5 {[%clk 0:02:43]} 8. Nc3 {[%clk 0:03:00]}  d6 {[%clk 0:02:43]} 9. e5 {[%clk 0:02:38]}  dxe5 {[%clk 0:02:31]} 10. Nxe5 {[%clk 0:02:38]}  Bxg2 {[%clk 0:02:30]} 11. Kxg2 {[%clk 0:02:39]}  Nd5 {[%clk 0:02:30]} 12. Qf3 {[%clk 0:02:24]}  Bxe5 {[%clk 0:02:07]} 13. Nxd5 {[%clk 0:02:18]}  c6 {[%clk 0:01:57]} 14. Ne3 {[%clk 0:02:11]}  Bg7 {[%clk 0:01:53]} 15. Re1 {[%clk 0:02:02]}  Qd7 {[%clk 0:01:32]} 16. Nc4 {[%clk 0:01:52]}  Qb7 {[%clk 0:01:19]} 17. Bf4 {[%clk 0:01:34]}  Na6 {[%clk 0:01:14]} 18. Re2 {[%clk 0:01:26]}  Nb4 {[%clk 0:01:08]} 19. Rae1 {[%clk 0:01:26]}  e6 {[%clk 0:01:07]} 20. Be5 {[%clk 0:01:04]}  Rfd8 {[%clk 0:00:53]} 21. h4 {[%clk 0:00:54]}  h5 {[%clk 0:00:41]} 22. Bxg7 {[%clk 0:00:51]}  Kxg7 {[%clk 0:00:41]} 23. Ne5 {[%clk 0:00:47]}  Rac8 {[%clk 0:00:34]} 24. g4 {[%clk 0:00:45]}  hxg4 {[%clk 0:00:25]} 25. Nxg4 {[%clk 0:00:45]}  Qe7 {[%clk 0:00:24]} 26. Qg3 {[%clk 0:00:29]}  Rd5 {[%clk 0:00:20]} 27. c3 {[%clk 0:00:25]}  Nxd3 {[%clk 0:00:19]} 28. Rd1 {[%clk 0:00:23]}  Rcd8 {[%clk 0:00:18]} 29. Rxd3 {[%clk 0:00:18]}  Rxd3 {[%clk 0:00:17]} 30. Qe5+ {[%clk 0:00:18]}  Kg8 {[%clk 0:00:12]} 31. Nf6+ {[%clk 0:00:18]}  Kf8 {[%clk 0:00:13]} 32. Nh7+ {[%clk 0:00:18]}  Ke8 {[%clk 0:00:13]} 33. Nf6+ {[%clk 0:00:17]}  Kf8 {[%clk 0:00:13]} 34. Re4 {[%clk 0:00:16]}  Qc5 {[%clk 0:00:08]} 35. Nh7+ {[%clk 0:00:12]}  Kg8 {[%clk 0:00:08]} 36. Nf6+ {[%clk 0:00:11]}  Kh8 {[%clk 0:00:09]} 37. Qf4 {[%clk 0:00:10]}  Kg7 {[%clk 0:00:07]} 38. h5 {[%clk 0:00:11]}  Qf5 {[%clk 0:00:07]} 39. h6+ {[%clk 0:00:11]}  Kxf6 {[%clk 0:00:07]} 40. Qh4+ {[%clk 0:00:10]}  g5 {[%clk 0:00:08]} 41. Rf4 {[%clk 0:00:06]}  Qxf4 {[%clk 0:00:07]} 42. Qh5 {[%clk 0:00:07]}  Qf3+ {[%clk 0:00:07]} 43. Qxf3+ {[%clk 0:00:06]}  Rxf3 {[%clk 0:00:08]} 44. h7 {[%clk 0:00:07]}  Rh8 {[%clk 0:00:09]} 0-1


[Site "https://www.chess.com"]

[Event "Titled Tuesday Blitz May 10 Early 2022"]
[White "Msellek, Ilyass"]
[Black "Trimitzios, Petros"]
[WhiteFideId "675938"]
[BlackFideId "25808796"]
[WhiteElo "2557"]
[BlackElo "2790"]
[Result "1/2-1/2"]
[Round "04"]
[TimeControl "180+1"]
[Date "2022.05.11"]
[WhiteClock "0:00:06"]
[BlackClock "0:00:40"]

1. d4 {[%clk 0:03:00]}  c6 {[%clk 0:02:58]} 2. e4 {[%clk 0:02:55]}  d5 {[%clk 0:02:59]} 3. Ne2 {[%clk 0:02:55]}  dxe4 {[%clk 0:02:59]} 4. Nbc3 {[%clk 0:02:55]}  Bf5 {[%clk 0:02:59]} 5. Ng3 {[%clk 0:02:55]}  Bg6 {[%clk 0:02:59]} 6. h4 {[%clk 0:02:51]}  h6 {[%clk 0:02:58]} 7. h5 {[%clk 0:02:51]}  Bh7 {[%clk 0:02:58]} 8. Ncxe4 {[%clk 0:02:51]}  Nd7 {[%clk 0:02:58]} 9. c3 {[%clk 0:02:38]}  Ngf6 {[%clk 0:02:57]} 10. Bd3 {[%clk 0:02:35]}  Nxe4 {[%clk 0:02:56]} 11. Nxe4 {[%clk 0:02:35]}  e6 {[%clk 0:02:55]} 12. Qe2 {[%clk 0:02:34]}  Be7 {[%clk 0:02:53]} 13. Bf4 {[%clk 0:02:34]}  Qa5 {[%clk 0:02:50]} 14. Nd6+ {[%clk 0:02:13]}  Bxd6 {[%clk 0:02:49]} 15. Bxd6 {[%clk 0:02:14]}  Bxd3 {[%clk 0:02:48]} 16. Qxd3 {[%clk 0:02:15]}  Qd5 {[%clk 0:02:48]} 17. Qg3 {[%clk 0:02:15]}  O-O-O {[%clk 0:02:45]} 18. O-O-O {[%clk 0:02:14]}  Qxa2 {[%clk 0:02:41]} 19. Qxg7 {[%clk 0:02:13]}  Qa1+ {[%clk 0:02:30]} 20. Kc2 {[%clk 0:02:10]}  Qa4+ {[%clk 0:02:30]} 21. Kb1 {[%clk 0:02:10]}  f5 {[%clk 0:02:25]} 22. Bg3 {[%clk 0:02:04]}  Qc4 {[%clk 0:02:20]} 23. Rhe1 {[%clk 0:02:01]}  Qd5 {[%clk 0:02:17]} 24. Rd2 {[%clk 0:01:42]}  Qxg2 {[%clk 0:02:12]} 25. Qe7 {[%clk 0:01:21]}  Qd5 {[%clk 0:01:51]} 26. Qxe6 {[%clk 0:00:58]}  Qxe6 {[%clk 0:01:46]} 27. Rxe6 {[%clk 0:00:59]}  Rdf8 {[%clk 0:01:45]} 28. Bf4 {[%clk 0:00:58]}  Nf6 {[%clk 0:01:39]} 29. Be5 {[%clk 0:00:58]}  Ne4 {[%clk 0:01:38]} 30. Re2 {[%clk 0:00:36]}  Re8 {[%clk 0:01:36]} 31. Rxe8+ {[%clk 0:00:23]}  Rxe8 {[%clk 0:01:37]} 32. f3 {[%clk 0:00:23]}  Ng5 {[%clk 0:01:37]} 33. f4 {[%clk 0:00:19]}  Ne4 {[%clk 0:01:34]} 34. Rg2 {[%clk 0:00:20]}  Re6 {[%clk 0:01:31]} 35. Rg6 {[%clk 0:00:18]}  Kd7 {[%clk 0:01:31]} 36. Rg7+ {[%clk 0:00:06]}  Re7 {[%clk 0:01:31]} 37. Rg8 {[%clk 0:00:07]}  b6 {[%clk 0:01:25]} 38. Kc2 {[%clk 0:00:07]}  Re8 {[%clk 0:01:24]} 39. Rg7+ {[%clk 0:00:07]}  Re7 {[%clk 0:01:24]} 40. Rg8 {[%clk 0:00:07]}  a5 {[%clk 0:01:07]} 41. Rh8 {[%clk 0:00:07]}  Re6 {[%clk 0:01:06]} 42. Rh7+ {[%clk 0:00:07]}  Kc8 {[%clk 0:01:05]} 43. Rc7+ {[%clk 0:00:06]}  Kd8 {[%clk 0:01:04]} 44. Rb7 {[%clk 0:00:04]}  b5 {[%clk 0:01:04]} 45. Rg7 {[%clk 0:00:05]}  a4 {[%clk 0:01:01]} 46. b3 {[%clk 0:00:04]}  axb3+ {[%clk 0:01:00]} 47. Kxb3 {[%clk 0:00:05]}  Ke8 {[%clk 0:01:01]} 48. Kb4 {[%clk 0:00:04]}  Kf8 {[%clk 0:01:00]} 49. Rh7 {[%clk 0:00:03]}  Kg8 {[%clk 0:00:55]} 50. Rh8+ {[%clk 0:00:04]}  Kf7 {[%clk 0:00:56]} 51. Ka5 {[%clk 0:00:04]}  Nxc3 {[%clk 0:00:54]} 52. Rh7+ {[%clk 0:00:04]}  Kf8 {[%clk 0:00:54]} 53. Rh8+ {[%clk 0:00:04]}  Kf7 {[%clk 0:00:53]} 54. Rh7+ {[%clk 0:00:05]}  Ke8 {[%clk 0:00:53]} 55. Rh8+ {[%clk 0:00:05]}  Kd7 {[%clk 0:00:53]} 56. Rh7+ {[%clk 0:00:05]}  Ke8 {[%clk 0:00:40]} 57. Rh8+ {[%clk 0:00:06]}  Kf7 {[%clk 0:00:40]} 1/2-1/2


[Site "https://www.chess.com"]

[Event "Titled Tuesday Blitz May 10 Early 2022"]
[White "Munoz, Francisco Javier"]
[Black "Leiva, Gianmarco"]
[WhiteFideId "128368"]
[BlackFideId "3804399"]
[WhiteElo "2383"]
[BlackElo "2323"]
[Result "1-0"]
[Round "04"]
[TimeControl "180+1"]
[Date "2022.05.11"]
[WhiteClock "0:00:15"]
[BlackClock "0:00:06"]

1. e4 {[%clk 0:02:50]}  c5 {[%clk 0:02:53]} 2. Nc3 {[%clk 0:02:49]}  d6 {[%clk 0:02:52]} 3. b3 {[%clk 0:02:46]}  g6 {[%clk 0:02:52]} 4. Bb2 {[%clk 0:02:46]}  Bg7 {[%clk 0:02:53]} 5. Qf3 {[%clk 0:02:45]}  Nc6 {[%clk 0:02:52]} 6. Bb5 {[%clk 0:02:45]}  Bd7 {[%clk 0:02:51]} 7. Bxc6 {[%clk 0:02:44]}  Bxc6 {[%clk 0:02:52]} 8. Nge2 {[%clk 0:02:44]}  Nf6 {[%clk 0:02:51]} 9. d4 {[%clk 0:02:43]}  cxd4 {[%clk 0:02:44]} 10. Nxd4 {[%clk 0:02:44]}  O-O {[%clk 0:02:27]} 11. O-O-O {[%clk 0:02:42]}  Bd7 {[%clk 0:02:23]} 12. Qe3 {[%clk 0:02:18]}  a6 {[%clk 0:01:16]} 13. h4 {[%clk 0:02:16]}  Rc8 {[%clk 0:01:01]} 14. Kb1 {[%clk 0:02:14]}  e5 {[%clk 0:01:00]} 15. Nde2 {[%clk 0:02:12]}  Qe7 {[%clk 0:00:57]} 16. f3 {[%clk 0:01:56]}  Bc6 {[%clk 0:00:36]} 17. g4 {[%clk 0:01:28]}  Rfd8 {[%clk 0:00:34]} 18. h5 {[%clk 0:01:26]}  d5 {[%clk 0:00:28]} 19. exd5 {[%clk 0:01:22]}  Nxd5 {[%clk 0:00:28]} 20. Nxd5 {[%clk 0:01:22]}  Rxd5 {[%clk 0:00:20]} 21. Rxd5 {[%clk 0:01:21]}  Bxd5 {[%clk 0:00:20]} 22. Nc3 {[%clk 0:01:21]}  Bc6 {[%clk 0:00:17]} 23. h6 {[%clk 0:01:21]}  Bf6 {[%clk 0:00:16]} 24. Ne4 {[%clk 0:01:20]}  Bxe4 {[%clk 0:00:08]} 25. Qxe4 {[%clk 0:01:21]}  Qc5 {[%clk 0:00:06]} 26. Rd1 {[%clk 0:01:20]}  Qc6 {[%clk 0:00:06]} 27. Rd5 {[%clk 0:01:16]}  Bg5 {[%clk 0:00:02]} 28. c4 {[%clk 0:01:13]}  Bxh6 {[%clk 0:00:02]} 29. Qxe5 {[%clk 0:01:12]}  f6 {[%clk 0:00:02]} 30. Qd4 {[%clk 0:00:38]}  Bg7 {[%clk 0:00:02]} 31. a4 {[%clk 0:00:38]}  Re8 {[%clk 0:00:02]} 32. Ka2 {[%clk 0:00:38]}  Qe6 {[%clk 0:00:02]} 33. Rd7 {[%clk 0:00:36]}  Re7 {[%clk 0:00:02]} 34. Rd8+ {[%clk 0:00:36]}  Kf7 {[%clk 0:00:02]} 35. Rd6 {[%clk 0:00:28]}  Qc8 {[%clk 0:00:02]} 36. g5 {[%clk 0:00:25]}  Re6 {[%clk 0:00:01]} 37. Rd7+ {[%clk 0:00:25]}  Kg8 {[%clk 0:00:01]} 38. Qd5 {[%clk 0:00:23]}  Qc6 {[%clk 0:00:01]} 39. gxf6 {[%clk 0:00:18]}  Qxd5 {[%clk 0:00:01]} 40. cxd5 {[%clk 0:00:18]}  Re2 {[%clk 0:00:01]} 41. Rxg7+ {[%clk 0:00:17]}  Kf8 {[%clk 0:00:01]} 42. Rxb7 {[%clk 0:00:17]}  Rf2 {[%clk 0:00:02]} 43. d6 {[%clk 0:00:15]}  Rd2 {[%clk 0:00:03]} 44. Rxh7 {[%clk 0:00:15]}  Rxd6 {[%clk 0:00:03]} 45. Ba3 {[%clk 0:00:15]}  Kg8 {[%clk 0:00:04]} 46. Rg7+ {[%clk 0:00:13]}  Kh8 {[%clk 0:00:04]} 47. Bxd6 {[%clk 0:00:14]}  a5 {[%clk 0:00:05]} 48. Be5 {[%clk 0:00:14]}  g5 {[%clk 0:00:05]} 49. f7 {[%clk 0:00:14]}  g4 {[%clk 0:00:06]} 50. f8=Q# {[%clk 0:00:15]} 1-0


[Site "https://www.chess.com"]